bitfinex/quotes_SOLUSD_20250130
["timestamp","ask_amount","ask_price","bid_price","bid_amount"]
[1738248565800,0.03,240.97,240.94,19.92080372]
[1738248566002,0.03,240.97,240.96,19.92080372]
[1738248566191,0.03,240.97,240.96,33.45814225]
[1738248566994,0.03,240.97,240.96,33.33265225]
[1738248568223,0.03,240.97,240.96,33.45814225]
[1738248568715,0.03,240.97,240.96,53.50443597]
[1738248568884,0.03,240.97,240.96,33.58363225]
[1738248569202,0.03,240.97,240.96,33.83461225]
[1738248569403,0.03,240.97,240.96,78.81541597]
[1738248569577,0.03,240.97,240.96,85.26311597]
[1738248570284,1.0,241.14,240.96,85.26311597]
[1738248570285,4.92407908,241.18,241.07,13.66282853]
[1738248570619,4.92324116,241.22,241.16,19.92080372]
[1738248570786,24.84404488,241.22,241.14,19.92080372]
[1738248570979,19.92080372,241.2,241.12,19.92080372]
[1738248571285,0.77753577,241.19,241.14,19.92080372]
[1738248571607,19.92080372,241.2,241.11,19.92080372]
[1738248571908,20.6984039,241.2,241.14,13.41184853]
[1738248572102,20.6984039,241.2,241.13,19.92080372]
[1738248572482,20.6984039,241.2,241.11,19.92080372]
[1738248573002,20.6984039,241.2,241.15,19.92080372]
[1738248573003,0.77760018,241.2,241.15,19.92080372]
[1738248573503,4.1461,241.19,241.13,19.92080372]
[1738248573702,4.1461,241.19,241.14,13.41184853]
[1738248574001,4.92324597,241.21,241.15,19.92080372]
[1738248574697,4.1458,241.21,241.17,19.92080372]
[1738248574900,4.92206871,241.27,241.21,0.12549]
[1738248575095,4.1444,241.29,241.25,19.92080372]
[1738248575291,4.92131685,241.31,241.27,19.92080372]
[1738248575590,14.5006,241.37,241.29,19.92080372]
[1738248575793,4.143,241.37,241.32,19.92080372]
[1738248576120,4.1427,241.39,241.35,19.92080372]
[1738248576284,4.1427,241.39,241.37,19.92080372]
[1738248576485,4.1424,241.41,241.38,19.92080372]
[1738248576689,4.1421,241.43,241.37,19.92080372]
[1738248576902,0.77670204,241.47,241.37,19.92080372]
[1738248577100,0.77670204,241.47,241.33,0.50196]
[1738248577307,4.1421,241.42,241.25,3.28]
[1738248577509,4.1421,241.42,241.36,19.92080372]
[1738248577809,20.69752637,241.41,241.34,19.92080372]
[1738248578011,20.69752637,241.41,241.32,19.92080372]
[1738248578196,19.92080372,241.36,241.28,19.92080372]
[1738248578397,0.77691938,241.38,241.34,19.92080372]
[1738248578709,4.1421,241.42,241.36,19.92080372]
[1738248579116,24.83960673,241.42,241.34,19.92080372]
[1738248579717,19.92080372,241.36,241.24,19.92080372]
[1738248579920,19.92080372,241.3,241.22,19.92080372]
[1738248580304,0.77715574,241.29,241.22,19.92080372]
[1738248580509,0.77715574,241.29,241.2,19.92080372]
[1738248580510,19.92080372,241.28,241.2,19.92080372]
[1738248580708,0.77728689,241.27,241.2,19.92080372]
[1738248581024,19.92080372,241.3,241.22,19.92080372]
[1738248581200,19.92080372,241.3,241.18,3.06761634]
[1738248581201,19.92080372,241.35,241.26,19.92080372]
[1738248581405,19.92080372,241.37,241.29,19.92080372]
[1738248581607,4.92007287,241.36,241.29,19.92080372]
[1738248582231,4.1431,241.36,241.31,19.92080372]
[1738248583029,0.03,241.42,241.35,19.92080372]
[1738248583230,4.1423,241.41,241.33,19.92080372]
[1738248583531,4.1423,241.41,241.35,19.92080372]
[1738248583702,4.1423,241.41,241.37,19.92080372]
[1738248584308,4.1423,241.41,241.39,19.92080372]
[1738248584506,0.03,241.42,241.39,19.92080372]
[1738248584707,0.03,241.42,241.41,19.92080372]
[1738248586939,0.03,241.42,241.38,19.92080372]
[1738248587326,0.03,241.42,241.37,19.92080372]
[1738248587825,0.03,241.42,241.38,19.92080372]
[1738248588022,0.03,241.42,241.39,19.92080372]
[1738248588322,19.92080372,241.4,241.32,19.92080372]
[1738248588520,19.92080372,241.38,241.31,19.92080372]
[1738248588719,0.77693897,241.37,241.29,19.92080372]
[1738248588934,19.92080372,241.4,241.33,19.92080372]
[1738248589940,0.03,241.42,241.37,19.92080372]
[1738248590129,19.95080372,241.42,241.35,19.92080372]
[1738248590349,0.77672229,241.41,241.33,19.92080372]
[1738248590810,0.03,241.42,241.37,19.92080372]
[1738248591144,0.03,241.42,241.41,20.04629372]
[1738248592037,0.03,241.42,241.41,20.42276372]
[1738248592257,0.03,241.56,241.45,0.50196]
[1738248592541,0.03,241.56,241.53,19.92080372]
[1738248592712,19.92080372,241.54,241.45,19.92080372]
[1738248593052,19.92080372,241.51,241.43,19.92080372]
[1738248593231,0.77653053,241.5,241.43,19.92080372]
[1738248593734,19.92080372,241.53,241.45,19.92080372]
[1738248594135,0.77640311,241.52,241.45,19.92080372]
[1738248594532,19.92080372,241.53,241.47,19.92080372]
[1738248594737,4.1401,241.54,241.49,19.92080372]
[1738248595336,0.77633637,241.53,241.47,19.92080372]
[1738248595535,4.1401,241.54,241.49,19.92080372]
[1738248596839,4.1401,241.54,241.47,19.92080372]
[1738248597146,19.92080372,241.49,241.41,19.92080372]
[1738248598025,4.1411,241.48,241.41,19.92080372]
[1738248598344,0.77656173,241.47,241.41,19.92080372]
[1738248598518,4.1411,241.48,241.41,19.92080372]
[1738248598937,4.1411,241.48,241.42,0.12549]
[1738248599141,4.1411,241.48,241.43,19.92080372]
[1738248599848,4.1404,241.52,241.45,19.92080372]
[1738248600046,0.77641798,241.51,241.45,19.92080372]
[1738248600252,0.77641798,241.51,241.34,1.611]
[1738248600253,19.92080372,241.47,241.39,19.92080372]
[1738248600455,19.92080372,241.51,241.43,19.92080372]
[1738248600749,0.77649952,241.5,241.43,19.92080372]
[1738248600949,19.92080372,241.49,241.41,19.92080372]
[1738248601132,19.92080372,241.49,241.42,0.12549]
[1738248601338,14.4915,241.52,241.42,0.12549]
[1738248601339,4.1404,241.52,241.48,19.92080372]
[1738248601538,0.03,241.56,241.5,19.92080372]
[1738248601743,0.03,241.56,241.54,19.92080372]
[1738248602055,0.03,241.56,241.52,19.92080372]
[1738248602574,0.03,241.56,241.5,19.92080372]
[1738248603467,0.03,241.56,241.52,19.92080372]
[1738248603861,0.03,241.56,241.44,58.39265225]
[1738248603862,0.03,241.56,241.5,19.92080372]
[1738248604523,4.1697,241.56,241.48,19.92080372]
[1738248604730,4.1697,241.56,241.51,19.92080372]
[1738248605034,0.03,241.56,241.53,19.92080372]
[1738248605394,0.03,241.56,241.54,0.12549]
[1738248605548,0.03,241.56,241.51,19.92080372]
[1738248606247,0.03,241.56,241.55,19.92080372]
[1738248606452,0.03,241.56,241.55,33.83461225]
[1738248607152,0.03,241.56,241.53,19.92080372]
[1738248607343,0.03,241.56,241.55,19.92080372]
[1738248607743,0.03,241.56,241.51,19.92080372]
[1738248608060,0.03,241.56,241.52,0.12549]
[1738248608442,0.03,241.56,241.51,19.92080372]
[1738248608633,0.03,241.56,241.49,19.92080372]
[1738248609289,0.03,241.56,241.5,0.12549]
[1738248609667,19.92080372,241.54,241.45,19.92080372]
[1738248609983,19.95080372,241.56,241.47,19.92080372]
[1738248610355,0.03,241.56,241.55,0.12549]
[1738248610554,0.03,241.56,241.54,19.92080372]
[1738248611286,0.03,241.56,241.55,0.12549]
[1738248611757,0.03,241.56,241.54,19.92080372]
[1738248612159,0.03,241.56,241.55,0.50196]
[1738248612891,0.03,241.56,241.48,19.92080372]
[1738248613286,0.80630295,241.56,241.48,19.92080372]
[1738248613485,19.92080372,241.53,241.44,19.92080372]
[1738248613782,0.80630295,241.56,241.42,19.92080372]
[1738248613783,19.92080372,241.51,241.42,19.92080372]
[1738248613985,19.92080372,241.49,241.4,19.92080372]
[1738248614191,19.92080372,241.45,241.36,19.92080372]
[1738248614481,0.77657644,241.48,241.31,19.92080372]
[1738248614482,19.92080372,241.39,241.31,19.92080372]
[1738248614704,4.1428,241.38,241.31,19.92080372]
[1738248615058,4.1428,241.38,241.29,1.531]
[1738248615059,19.92080372,241.37,241.29,19.92080372]
[1738248615265,19.92080372,241.39,241.31,19.92080372]
[1738248615570,4.1426,241.4,241.32,0.12549]
[1738248615772,4.1426,241.4,241.33,19.92080372]
[1738248616079,19.92080372,241.37,241.29,19.92080372]
[1738248616482,19.92080372,241.35,241.27,20.04629372]
[1738248616775,4.1435,241.34,241.27,19.92080372]
[1738248616984,4.1431,241.37,241.29,19.92080372]
[1738248617200,4.1431,241.37,241.31,19.92080372]
[1738248617369,19.92080372,241.43,241.35,19.92080372]
[1738248617571,19.92080372,241.45,241.37,19.92080372]
[1738248617760,19.92080372,241.43,241.35,19.92080372]
[1738248618262,40.69749658,241.45,241.37,19.92080372]
[1738248618475,19.92080372,241.45,241.37,19.92080372]
[1738248618679,19.92080372,241.43,241.36,0.12549]
[1738248618883,19.92080372,241.37,241.27,19.92080372]
[1738248619058,19.92080372,241.34,241.27,19.92080372]
[1738248619266,19.92080372,241.32,241.23,26.17560372]
[1738248619461,19.92080372,241.28,241.19,19.92080372]
[1738248619769,19.92080372,241.3,241.21,19.92080372]
[1738248619970,19.92080372,241.28,241.19,19.92080372]
[1738248620183,19.92080372,241.26,241.17,19.98380372]
[1738248620586,19.92080372,241.24,241.17,0.063]
[1738248620791,4.1454,241.23,241.17,0.063]
[1738248620988,19.92080372,241.22,241.17,0.063]
[1738248621174,19.92080372,241.18,241.17,0.063]
[1738248621375,19.92080372,241.18,241.17,0.0001]
[1738248621887,19.92080372,241.2,241.17,0.0001]
[1738248622086,19.92080372,241.18,241.17,0.0001]
[1738248622982,24.06700372,241.18,241.17,0.0001]
[1738248623489,24.84472662,241.18,241.17,0.0001]
[1738248624280,25.84472662,241.18,241.17,0.0001]
[1738248624502,40.25657515,241.18,241.17,0.0001]
[1738248624695,21.0,241.1,240.91,19.92080372]
[1738248624888,24.07010372,241.0,240.88,19.92080372]
[1738248625096,24.07010372,241.0,240.87,19.92080372]
[1738248625305,24.07010372,241.0,240.84,6.4755]
[1738248625478,19.92080372,241.0,240.85,1.25098]
[1738248625681,0.77800225,241.07,240.97,0.12549]
[1738248626013,1.0,241.14,241.03,0.12549]
[1738248626014,0.77787304,241.14,241.03,0.12549]
[1738248626180,4.92487304,241.14,241.03,0.25098]
[1738248626384,19.92080372,241.12,241.05,0.12549]
[1738248626588,0.77787304,241.14,241.05,0.12549]
[1738248626589,19.92080372,241.14,241.06,0.12549]
[1738248626899,19.92080372,241.14,241.08,0.12549]
[1738248627205,19.92080372,241.14,240.98,2.0]
[1738248627206,19.92080372,241.09,240.99,0.063]
[1738248627381,19.92080372,241.04,240.99,0.063]
[1738248627907,19.92080372,241.03,240.99,0.063]
[1738248628302,19.92080372,241.07,241.01,0.25098]
[1738248628602,19.92080372,241.17,241.08,0.25098]
[1738248628833,19.92080372,241.19,241.11,19.92080372]
[1738248629102,19.92080372,241.17,241.09,19.92080372]
[1738248629284,19.92080372,241.14,241.06,19.92080372]
[1738248629479,19.92080372,241.16,241.09,0.12549]
[1738248629895,19.92080372,241.18,241.11,0.12549]
[1738248630094,19.92080372,241.23,241.15,19.92080372]
[1738248630306,19.92080372,241.25,241.17,19.92080372]
[1738248630495,24.06590372,241.25,241.17,19.92080372]
[1738248630881,19.92080372,241.21,241.16,0.12549]
[1738248631300,19.92080372,241.27,241.19,20.04629372]
[1738248631687,19.92080372,241.29,241.21,20.04629372]
[1738248632199,24.06520372,241.29,241.21,20.04629372]
[1738248632581,24.06480372,241.31,241.24,0.12549]
[1738248633113,19.92080372,241.25,241.17,39.92080372]
[1738248633287,19.92080372,241.23,241.17,20.0]
[1738248633611,19.92080372,241.25,241.17,19.92080372]
[1738248633821,19.92080372,241.25,241.12,1.504]
[1738248633822,20.69791004,241.3,241.23,0.12549]
[1738248633985,19.92080372,241.36,241.21,0.50196]
[1738248634185,19.92080372,241.36,241.29,19.92080372]
[1738248634816,20.69773097,241.38,241.31,19.92080372]
[1738248635026,24.06370372,241.38,241.31,19.92080372]
[1738248635213,4.1429,241.38,241.31,19.92080372]
[1738248636190,24.06330372,241.4,241.34,0.12549]
[1738248636394,24.09300372,241.42,241.35,19.92080372]
[1738248636592,4.1722,241.42,241.35,19.92080372]
[1738248636826,0.03,241.42,241.37,19.92080372]
[1738248636994,24.09290372,241.42,241.35,20.04629372]
[1738248637399,24.09290372,241.42,241.35,0.12549]
[1738248638417,0.03,241.42,241.39,19.92080372]
[1738248638611,0.03,241.42,241.41,20.42276372]
[1738248638804,0.03,241.42,241.41,20.04629372]
[1738248639816,0.03,241.42,241.38,20.04629372]
[1738248640018,19.92080372,241.41,241.33,19.92080372]
[1738248640195,19.92080372,241.37,241.29,19.92080372]
[1738248640690,0.8068511,241.42,241.28,19.92080372]
[1738248641091,19.92080372,241.36,241.29,0.50196]
[1738248641488,19.92080372,241.37,241.31,0.12549]
[1738248641686,19.92080372,241.39,241.31,0.25098]
[1738248641891,4.1423,241.41,241.34,19.92080372]
[1738248642288,24.06310372,241.41,241.34,19.92080372]
[1738248642493,19.92080372,241.39,241.31,19.92080372]
[1738248642799,19.92080372,241.37,241.3,0.50196]
[1738248643009,19.92080372,241.36,241.3,0.50196]
[1738248643212,19.92080372,241.35,241.3,0.12549]
[1738248643405,19.92080372,241.36,241.28,19.92080372]
[1738248643604,19.92080372,241.37,241.3,0.12549]
[1738248644314,4.1429,241.38,241.33,19.92080372]
[1738248644517,4.1425,241.4,241.35,19.92080372]
[1738248645011,4.1425,241.4,241.34,0.12549]
[1738248645213,0.03,241.42,241.39,19.92080372]
[1738248645423,0.03,241.42,241.41,20.17178372]
[1738248645598,0.03,241.42,241.41,65.40356744]
[1738248645919,0.03,241.56,241.45,45.56196]
[1738248646114,0.03,241.56,241.54,19.92080372]
[1738248646300,0.03,241.56,241.55,0.37647]
[1738248646702,0.03,241.56,241.55,32.47388736]
[1738248647106,0.03,241.56,241.55,32.22290736]
[1738248648324,0.03,241.56,241.55,32.47388736]
[1738248648521,0.03,241.56,241.55,32.59937736]
[1738248648706,0.03,241.56,241.55,57.65937736]
[1738248648907,0.03,241.56,241.55,32.59937736]
[1738248649223,0.03,241.56,241.55,32.22290736]
[1738248649422,0.03,241.56,241.55,32.59937736]
[1738248649922,0.03,241.56,241.55,32.22290736]
[1738248650122,0.03,241.56,241.52,0.25098]
[1738248650307,0.03,241.56,241.52,32.09741736]
[1738248650505,0.03,241.56,241.55,0.50196]
[1738248651613,10.3437,241.7,241.55,0.50196]
[1738248651614,0.77595646,241.77,241.59,0.50196]
[1738248651918,4.1367,241.74,241.66,32.59937736]
[1738248652320,36.23371736,241.76,241.66,32.59937736]
[1738248652614,4.1363,241.76,241.66,32.59937736]
[1738248652816,0.03,241.81,241.76,0.12549]
[1738248653017,0.03,241.81,241.77,32.09741736]
[1738248653814,32.09741736,241.79,241.73,32.09741736]
[1738248654019,32.09741736,241.75,241.68,32.09741736]
[1738248654223,32.09741736,241.78,241.7,32.09741736]
[1738248654424,32.09741736,241.8,241.72,32.09741736]
[1738248654639,32.09741736,241.8,241.73,0.25098]
[1738248654929,32.09741736,241.8,241.72,32.09741736]
[1738248655127,32.09741736,241.78,241.71,32.09741736]
[1738248655329,32.09741736,241.78,241.7,32.09741736]
[1738248655543,4.1363,241.76,241.69,32.09741736]
[1738248655849,32.09741736,241.72,241.65,32.09741736]
[1738248657035,4.1371,241.71,241.65,32.09741736]
[1738248657333,4.1371,241.71,241.61,0.12549]
[1738248657334,32.09741736,241.69,241.61,32.09741736]
[1738248657517,32.09741736,241.68,241.61,32.09741736]
[1738248657724,32.09741736,241.7,241.63,32.09741736]
[1738248658313,4.1375,241.69,241.63,32.09741736]
[1738248659028,0.77589276,241.68,241.61,32.09741736]
[1738248659234,32.87331012,241.68,241.6,32.34839736]
[1738248659434,32.09741736,241.7,241.63,32.09741736]
[1738248659644,32.09741736,241.71,241.65,32.09741736]
[1738248659832,37.00967913,241.75,241.68,0.25098]
[1738248660027,0.77567267,241.74,241.67,32.09741736]
[1738248660229,36.23391736,241.75,241.69,32.09741736]
[1738248660643,32.87314783,241.74,241.66,32.09741736]
[1738248660827,32.09741736,241.8,241.73,32.09741736]
[1738248660828,0.77569273,241.8,241.73,32.09741736]
[1738248661145,0.77569273,241.8,241.69,0.25098]
[1738248661146,0.03,241.81,241.78,32.09741736]
[1738248661327,0.03,241.81,241.8,32.09741736]
[1738248661531,0.03,241.81,241.78,32.09741736]
[1738248661722,4.1655,241.81,241.78,32.09741736]
[1738248662129,0.03,241.81,241.78,32.09741736]
[1738248664464,32.09741736,241.8,241.72,32.09741736]
[1738248664668,32.09741736,241.78,241.71,32.09741736]
[1738248665038,32.09741736,241.76,241.69,32.09741736]
[1738248665272,32.09741736,241.74,241.66,32.09741736]
[1738248665774,32.09741736,241.67,241.59,32.09741736]
[1738248666064,0.77598045,241.75,241.64,32.09741736]
[1738248666368,32.09741736,241.71,241.64,32.09741736]
[1738248666548,4.1373,241.7,241.64,32.09741736]
[1738248666963,32.09741736,241.67,241.59,32.09741736]
[1738248667172,0.77602573,241.66,241.48,1.5777]
[1738248667378,32.09741736,241.63,241.56,32.09741736]
[1738248667556,32.09741736,241.64,241.57,32.09741736]
[1738248667756,4.1373,241.7,241.58,0.25098]
[1738248667981,4.1373,241.7,241.6,0.25098]
[1738248668286,0.7759766,241.73,241.62,0.25098]
[1738248668449,4.91225385,241.75,241.64,0.25098]
[1738248668647,4.1359,241.78,241.65,0.25098]
[1738248668953,4.1356,241.8,241.75,32.09741736]
[1738248669160,0.03,241.81,241.77,32.09741736]
[1738248670161,0.03,241.81,241.7,0.12549]
[1738248670162,0.03,241.81,241.79,32.09741736]
[1738248670783,0.03,241.81,241.75,32.09741736]
[1738248671083,0.03,241.81,241.79,32.09741736]
[1738248671259,0.03,241.81,241.77,32.09741736]
[1738248672472,0.03,241.81,241.7,32.09741736]
[1738248672473,32.09741736,241.78,241.7,32.09741736]
[1738248672773,32.09741736,241.73,241.65,32.09741736]
[1738248673375,32.09741736,241.73,241.67,0.063]
[1738248673587,32.87298499,241.77,241.69,32.09741736]
[1738248673787,32.09741736,241.74,241.67,0.063]
[1738248674499,4.1359,241.79,241.72,32.09741736]
[1738248674698,0.03,241.81,241.78,32.09741736]
[1738248674899,4.1655,241.81,241.78,32.09741736]
[1738248675187,4.1655,241.81,241.76,32.09741736]
[1738248675390,0.03,241.81,241.76,32.09741736]
[1738248675585,0.03,241.81,241.8,64.19483472]
[1738248676571,0.03,241.81,241.8,64.69679472]
[1738248677178,0.03,241.81,241.76,32.09741736]
[1738248677906,0.03,241.81,241.78,32.09741736]
[1738248679501,0.03,241.81,241.8,32.09741736]
[1738248679671,0.03,241.81,241.74,32.09741736]
[1738248679877,32.12741736,241.81,241.74,32.09741736]
[1738248680077,0.03,241.81,241.77,32.09741736]
[1738248680884,0.03,241.81,241.75,32.09741736]
[1738248681089,0.03,241.81,241.74,32.09741736]
[1738248681276,0.03,241.81,241.76,32.09741736]
[1738248681479,0.03,241.81,241.8,32.09741736]
[1738248681797,0.03,241.81,241.8,32.47388736]
[1738248681990,0.03,241.81,241.8,32.59937736]
[1738248682682,0.03,241.81,241.8,32.09741736]
[1738248682914,0.03,241.81,241.8,32.59937736]
[1738248683094,0.03,241.81,241.8,32.34839736]
[1738248683279,0.03,241.81,241.8,32.09741736]
[1738248683775,32.12741736,241.81,241.68,6.5117]
[1738248684005,32.09741736,241.79,241.71,32.09741736]
[1738248684314,32.12741736,241.81,241.73,32.09741736]
[1738248684501,0.03,241.81,241.79,32.09741736]
[1738248686686,0.03,241.81,241.79,57.15741736]
[1738248686912,0.03,241.81,241.8,57.65937736]
[1738248687421,0.03,241.81,241.8,25.43647]
[1738248687628,0.03,241.81,241.8,25.56196]
[1738248687920,0.03,241.81,241.8,57.65937736]
[1738248688997,0.03,241.81,241.8,25.56196]
[1738248689302,0.03,241.81,241.79,32.09741736]
[1738248690183,0.03,241.81,241.8,0.25098]
[1738248691084,0.03,241.81,241.8,0.50196]
[1738248693797,0.03,241.81,241.8,0.37647]
[1738248694010,0.03,241.81,241.8,0.25098]
[1738248694523,0.03,241.81,241.8,64.69679472]
[1738248695321,4.1331,241.95,241.83,20.0]
[1738248695517,4.1331,241.95,241.89,32.09741736]
[1738248696252,0.03,241.95,241.9,0.25098]
[1738248696390,0.03,241.95,241.94,32.09741736]
[1738248696597,0.03,241.95,241.94,32.47388736]
[1738248697895,0.03,241.95,241.94,32.59937736]
[1738248701241,0.03,241.95,241.94,32.22290736]
[1738248701757,0.03,241.95,241.94,32.09741736]
[1738248702067,0.03,241.95,241.94,32.22290736]
[1738248702268,0.03,241.95,241.94,32.09741736]
[1738248702740,0.03,241.95,241.94,32.59937736]
[1738248703344,0.03,241.95,241.94,32.22290736]
[1738248704054,0.03,241.95,241.94,71.07122589]
[1738248704369,0.03,241.95,241.94,58.65937736]
[1738248704672,0.03,241.95,241.94,57.65937736]
[1738248704832,0.03,241.95,241.94,71.07122589]
[1738248705161,0.03,241.95,241.94,72.07122589]
[1738248705529,0.03,242.06,241.99,57.15741736]
[1738248705747,0.03,242.06,241.99,57.53388736]
[1738248705955,0.03,242.06,241.99,57.15741736]
[1738248706339,0.03,242.06,241.99,32.09741736]
[1738248706653,0.03,242.06,241.99,32.22290736]
[1738248706943,0.03,242.06,241.99,32.09741736]
[1738248707129,0.03,242.06,241.99,32.59937736]
[1738248707330,0.03,242.06,241.99,57.41937736]
[1738248707733,0.03,242.06,241.99,70.83122589]
[1738248708351,0.03,242.06,241.99,32.09741736]
[1738248708869,0.030079,242.0,241.99,44.99873346]
[1738248710268,0.030079,242.0,241.98,19.67677346]
[1738248710436,0.030079,242.0,241.99,19.67677346]
[1738248711267,0.030079,242.0,241.99,19.80226346]
[1738248711638,0.030079,242.0,241.99,44.99873346]
[1738248712346,0.030079,242.0,241.99,58.41058199]
[1738248713236,0.030079,242.0,241.99,70.86058199]
[1738248713453,0.03,242.06,242.04,0.12549]
[1738248713657,0.03,242.06,242.04,44.49677346]
[1738248713855,0.03,242.06,242.04,64.17354692]
[1738248714138,0.03,242.06,242.05,0.50196]
[1738248714343,0.03,242.06,242.05,0.12549]
[1738248714857,0.03,242.06,242.04,44.49677346]
[1738248714858,0.03,242.06,242.04,19.67677346]
[1738248715764,0.03,242.06,242.04,44.49677346]
[1738248716160,0.03,242.06,242.04,19.67677346]
[1738248716365,0.03,242.06,242.02,19.67677346]
[1738248717568,0.03,242.06,242.0,19.67677346]
[1738248717975,0.03,242.06,242.0,44.49677346]
[1738248718173,0.03,242.06,242.0,19.67677346]
[1738248718364,4.1612,242.06,242.0,19.67677346]
[1738248718859,19.67677346,242.05,241.98,19.67677346]
[1738248719268,19.67677346,242.05,241.9,0.12549]
[1738248719269,19.67677346,242.05,241.96,19.67677346]
[1738248719575,19.67677346,242.03,241.96,19.67677346]
[1738248719769,19.67677346,242.05,241.96,44.49677346]
[1738248719966,19.67677346,242.05,241.98,19.67677346]
[1738248720275,4.1612,242.06,241.98,19.67677346]
[1738248720688,19.67677346,242.02,241.95,0.063]
[1738248720858,19.67677346,242.0,241.95,0.063]
[1738248721168,1.6323,242.03,241.95,0.063]
[1738248721169,19.67677346,241.98,241.95,0.063]
[1738248721366,19.67677346,241.96,241.95,0.063]
[1738248721756,19.67677346,241.96,241.8,19.67677346]
[1738248721757,1.6246,241.92,241.8,19.67677346]
[1738248721997,19.67677346,241.85,241.77,44.49677346]
[1738248722295,0.77528593,241.91,241.83,19.67677346]
[1738248722458,1.6246,241.92,241.89,19.67677346]
[1738248722653,4.1331,241.95,241.91,19.67677346]
[1738248722991,1.6246,241.98,241.93,19.67677346]
[1738248723154,1.6246,241.98,241.95,19.67677346]
[1738248723491,0.03,242.06,242.02,24.82]
[1738248723658,0.03,242.06,242.05,19.67677346]
[1738248723996,0.03,242.06,242.03,19.67677346]
[1738248724288,0.03,242.06,242.01,19.67677346]
[1738248724489,0.03,242.06,242.03,19.67677346]
[1738248724658,0.03,242.06,242.01,31.98529418]
[1738248724866,0.03,242.06,242.03,31.98529418]
[1738248725613,0.03,242.06,241.99,31.98529418]
[1738248725614,32.78991214,242.06,241.99,31.98529418]
[1738248725988,32.78991214,242.06,241.97,31.98529418]
[1738248726181,33.78991214,242.06,241.97,31.98529418]
[1738248726390,37.92111214,242.06,241.97,31.98529418]
[1738248727293,37.92111214,242.06,241.84,12.45]
[1738248727294,31.98529418,242.02,241.93,31.98529418]
[1738248727493,0.77493205,242.01,241.95,31.98529418]
[1738248727683,0.77493205,242.01,241.83,6.2537]
[1738248727684,0.77492403,242.01,241.98,31.98529418]
[1738248727881,0.77487059,242.05,241.98,31.98529418]
[1738248728472,0.03,242.06,242.0,31.98529418]
[1738248728789,0.03,242.06,242.02,31.98529418]
[1738248728991,0.80475606,242.06,242.0,31.98529418]
[1738248729293,31.98529418,242.03,241.88,24.82]
[1738248729535,0.77495463,242.02,241.97,31.98529418]
[1738248729715,0.03,242.06,242.01,31.98529418]
[1738248729903,0.03,242.06,242.05,31.98529418]
[1738248730103,0.80479419,242.06,242.03,31.98529418]
[1738248730615,0.03,242.06,242.03,31.98529418]
[1738248730813,4.1613,242.06,242.03,31.98529418]
[1738248730997,0.77477285,242.05,242.03,31.98529418]
[1738248731525,0.77477285,242.05,242.01,31.98529418]
[1738248731714,1.0,242.04,241.96,31.98529418]
[1738248732022,33.98529418,242.02,241.94,31.98529418]
[1738248732205,2.36986194,242.01,241.92,31.98529418]
[1738248732413,1.0,242.0,241.92,31.98529418]
[1738248732606,1.0,241.97,241.9,31.98529418]
[1738248732799,31.98529418,241.94,241.86,31.98529418]
[1738248733017,0.77528324,241.93,241.88,31.98529418]
[1738248733234,0.77520708,241.95,241.92,31.98529418]
[1738248733429,0.77520708,241.95,241.94,31.98529418]
[1738248733739,0.77520708,241.95,241.9,31.98529418]
[1738248733913,31.98529418,241.92,241.84,31.98529418]
[1738248734113,1.77535393,241.91,241.84,31.98529418]
[1738248734341,1.0,241.89,241.84,31.98529418]
[1738248734536,4.90961083,241.88,241.84,31.98529418]
[1738248734733,0.77541083,241.88,241.86,31.98529418]
[1738248734937,5.134,241.9,241.84,31.98529418]
[1738248735243,1.0,241.86,241.81,31.98529418]
[1738248735433,0.77550045,241.85,241.81,31.98529418]
[1738248735628,0.77550045,241.85,241.83,31.98529418]
[1738248735838,0.77550045,241.85,241.81,31.98529418]
[1738248736559,0.77550045,241.85,241.83,31.98529418]
[1738248736721,0.77550045,241.85,241.82,31.98529418]
[1738248737116,1.0,241.81,241.77,32.04829418]
[1738248737355,0.77564498,241.8,241.77,32.04829418]
[1738248737856,0.77552144,241.91,241.82,20.0]
[1738248738022,0.77552144,241.91,241.9,31.98529418]
[1738248738221,0.77520792,241.92,241.9,31.98529418]
[1738248738534,0.77520792,241.92,241.91,31.98529418]
[1738248739235,1.77520792,241.92,241.91,31.98529418]